bitfinex/quotes_ETHUSD_20230113
["timestamp","ask_amount","ask_price","bid_price","bid_amount"]
[1673642225873,0.18246208,1423.4,1423.3,28.10368]
[1673642226090,0.18246208,1423.4,1423.3,28.16679362]
[1673642226676,0.18246208,1423.4,1423.3,21.14087362]
[1673642226903,0.18246208,1423.4,1423.3,0.06311362]
[1673642227095,0.18246208,1423.4,1423.2,22.32861362]
[1673642227301,0.18246208,1423.4,1423.2,25.43951888]
[1673642227742,0.18246208,1423.4,1423.2,18.41333888]
[1673642228148,0.18246208,1423.4,1423.2,25.43974888]
[1673642228561,0.18246208,1423.4,1423.2,24.25274888]
[1673642228804,0.18246208,1423.4,1423.2,21.14184362]
[1673642229869,1.23214098,1423.4,1423.2,14.11543362]
[1673642231202,1.23214098,1423.4,1423.2,0.06311362]
[1673642231413,1.23214098,1423.4,1423.1,14.11621362]
[1673642231628,1.23214098,1423.4,1423.2,21.07916]
[1673642231878,1.23214098,1423.4,1423.2,21.14227362]
[1673642231879,0.18246208,1423.4,1423.2,21.14227362]
[1673642232037,0.18246208,1423.4,1423.2,23.95915498]
[1673642232242,0.18246208,1423.4,1423.2,27.5654877]
[1673642233341,0.18246208,1423.4,1423.2,28.7524877]
[1673642234030,0.18246208,1423.4,1423.3,2.5]
[1673642234239,0.18246208,1423.4,1423.3,28.36109272]
[1673642234462,0.18246208,1423.4,1423.3,32.36964911]
[1673642234986,0.18246208,1423.4,1423.3,33.55664911]
[1673642235424,0.21000792,1423.5,1423.3,33.55664911]
[1673642235620,0.21000792,1423.5,1423.4,27.04562272]
[1673642235831,7.92e-06,1423.5,1423.4,27.10873634]
[1673642236057,0.066,1423.8,1423.4,31.86933825]
[1673642236234,0.066,1423.9,1423.7,4.78233272]
[1673642236443,0.20211248,1424.0,1423.7,3.60633272]
[1673642236652,0.20211248,1424.0,1423.8,21.07035]
[1673642236917,0.20211248,1424.0,1423.9,15.22292]
[1673642237138,1.63711248,1424.0,1423.9,0.06311362]
[1673642237278,1.63711248,1424.0,1423.8,0.06311362]
[1673642237497,1.63711248,1424.0,1423.7,10.69302634]
[1673642237824,0.20411248,1424.0,1423.7,10.69102634]
[1673642238035,0.20211248,1424.0,1423.7,10.69302634]
[1673642238873,0.20211248,1424.0,1423.7,17.71697634]
[1673642239087,0.20211248,1424.0,1423.7,20.89589783]
[1673642239543,0.20211248,1424.0,1423.7,27.91984783]
[1673642239759,0.20211248,1424.0,1423.7,20.89589783]
[1673642239934,0.20211248,1424.0,1423.8,3.60633272]
[1673642240151,1.13058311,1424.2,1423.9,32.87517272]
[1673642240361,1.06458311,1424.2,1424.0,8.06984999]
[1673642240544,1.06458311,1424.2,1424.1,14.04394]
[1673642240753,1.06458311,1424.2,1424.1,14.10705362]
[1673642241390,1.06458311,1424.2,1424.1,15.28305362]
[1673642241595,1.01458311,1424.2,1424.1,15.28305362]
[1673642241859,1.01458311,1424.2,1424.1,22.30033097]
[1673642247514,1.01458311,1424.2,1424.1,29.32230097]
[1673642248806,1.01458311,1424.2,1424.1,7.08508362]
[1673642249000,1.01458311,1424.2,1424.1,0.06311362]
[1673642249195,2.43171113,1424.2,1423.8,14.10922362]
[1673642249531,4.72314712,1424.2,1423.8,14.10922362]
[1673642249739,4.72314712,1424.2,1423.8,28.2408457]
[1673642249928,4.72314712,1424.2,1423.8,29.4168457]
[1673642250113,1.01458311,1424.2,1423.8,29.4168457]
[1673642250881,1.01458311,1424.2,1424.0,21.06741]
[1673642251079,1.01458311,1424.2,1424.0,21.13052362]
[1673642254213,1.01458311,1424.2,1424.1,3.60633272]
[1673642254448,1.01458311,1424.2,1424.1,24.67224272]
[1673642254660,1.01458311,1424.2,1424.1,25.91235634]
[1673642255832,38.1845,1424.5,1424.1,25.91235634]
[1673642256011,38.1845,1424.5,1424.2,3.55633272]
[1673642256012,30.436,1424.5,1424.2,3.55633272]
[1673642256357,30.436,1424.5,1424.4,7.02049]
[1673642256358,0.066,1424.5,1424.4,7.02049]
[1673642256533,3.0,1424.6,1424.4,17.71042634]
[1673642256741,2.95,1424.6,1424.4,17.71042634]
[1673642256978,2.95,1424.6,1424.4,10.68993634]
[1673642257142,7.08507,1424.7,1424.4,10.68993634]
[1673642257356,0.066,1424.7,1424.4,24.73091634]
[1673642257615,31.78001818,1424.8,1424.4,17.71042634]
[1673642257616,30.65901818,1424.8,1424.4,17.71042634]
[1673642257988,37.67756818,1424.8,1424.4,17.71042634]
[1673642258198,2.9,1424.7,1424.4,17.71042634]
[1673642258407,2.8,1424.7,1424.4,17.71042634]
[1673642258660,2.8,1424.7,1424.4,14.10409362]
[1673642259262,30.65901818,1424.8,1424.5,3.60633272]
[1673642259459,30.65901818,1424.8,1424.6,21.05853]
[1673642259460,0.28901818,1424.8,1424.6,21.05853]
[1673642259664,0.22301818,1424.8,1424.6,21.12164362]
[1673642261194,0.22301818,1424.8,1424.6,25.91497634]
[1673642261367,0.22301818,1424.8,1424.6,18.89546634]
[1673642261720,0.22301818,1424.8,1424.6,21.81637404]
[1673642261875,0.22301818,1424.8,1424.6,21.81437404]
[1673642262080,0.22301818,1424.8,1424.7,3.60633272]
[1673642262346,0.22301818,1424.8,1424.7,25.83939272]
[1673642262553,1.65801818,1424.8,1424.7,1.23911362]
[1673642262749,1.82382,1424.8,1424.4,0.06311362]
[1673642263078,1.82382,1424.8,1424.3,0.06311362]
[1673642263079,0.70856401,1424.7,1424.3,0.06311362]
[1673642263237,7.01961,1424.6,1424.1,0.06311362]
[1673642263448,8.7499298,1424.6,1424.1,0.12501136]
[1673642263708,9.45841381,1424.6,1424.1,3.73134408]
[1673642264094,2.43888381,1424.6,1424.2,3.60633272]
[1673642264315,3.70856401,1424.6,1424.2,3.60633272]
[1673642264947,10.72815401,1424.6,1424.1,0.18812498]
[1673642265148,11.27259,1424.6,1424.0,14.10583362]
[1673642265408,11.98115401,1424.6,1424.0,17.71416634]
[1673642265620,11.98115401,1424.6,1424.0,10.69180634]
[1673642266241,19.00074401,1424.6,1424.0,10.69180634]
[1673642266328,1.187,1424.4,1424.0,7.08547362]
[1673642266556,15.22843,1424.4,1424.0,0.06311362]
[1673642266730,15.22843,1424.4,1423.9,21.62331362]
[1673642266731,1.187,1424.3,1423.9,21.62331362]
[1673642267088,15.22908,1424.3,1423.9,0.06311362]
[1673642267399,9.961558,1424.2,1423.7,14.11064362]
[1673642267560,1.187,1424.1,1423.7,14.11064362]
[1673642267765,7.02257,1424.0,1423.7,0.06311362]
[1673642268031,14.11114,1424.0,1423.5,23.03421362]
[1673642268355,14.11114,1424.0,1423.7,14.04773]
[1673642268356,0.066,1424.0,1423.7,14.04773]
[1673642268506,55.59059,1424.3,1423.8,17.65265272]
[1673642268507,55.65677,1424.3,1423.8,17.65265272]
[1673642268710,7.02153,1424.2,1423.8,11.87943634]
[1673642268920,7.08753,1424.2,1423.8,11.87943634]
[1673642269195,14.10906,1424.2,1423.8,3.66944634]
[1673642269345,14.10906,1424.2,1423.8,4.79436235]
[1673642269769,14.10906,1424.2,1423.8,1.18802963]
[1673642269770,20.88059,1424.2,1423.8,1.18802963]
[1673642269979,20.88059,1424.2,1423.7,8.21093]
[1673642270193,20.88059,1424.2,1423.7,11.88037634]
[1673642270972,20.63059,1424.2,1423.7,11.88037634]
[1673642271361,20.63059,1424.2,1423.7,18.90432634]
[1673642271588,13.60906,1424.2,1423.8,1.89043263]
[1673642271924,20.63059,1424.2,1423.8,1.89043263]
[1673642272471,20.63059,1424.2,1423.7,1.25011362]
[1673642272633,20.63059,1424.2,1423.6,3.54253498]
[1673642272983,14.04642,1423.9,1423.5,0.06311362]
[1673642273197,14.04642,1423.9,1423.3,31.87693389]
[1673642273198,4.404642,1423.8,1423.3,31.87693389]
[1673642273412,17.0491,1423.8,1423.4,12.37418736]
[1673642273714,10.08945,1423.8,1423.4,20.33402074]
[1673642274090,10.08945,1423.8,1423.4,13.30859074]
[1673642274091,17.1131,1423.8,1423.4,13.30859074]
[1673642274302,17.1131,1423.8,1423.4,2.67696802]
[1673642274514,17.1131,1423.8,1423.3,0.06311362]
[1673642274515,3.12831,1423.7,1423.3,0.06311362]
[1673642274736,10.15234,1423.7,1423.3,7.02592]
[1673642274938,10.21834,1423.7,1423.3,7.08903362]
[1673642275187,10.21834,1423.7,1423.3,14.11495362]
[1673642275188,2.00731,1423.7,1423.3,14.11495362]
[1673642275409,3.066,1423.8,1423.3,24.74720634]
[1673642275615,3.0,1423.8,1423.3,24.74720634]
[1673642275780,3.0,1423.8,1423.3,25.79224661]
[1673642276352,3.0,1423.8,1423.3,24.74720634]
[1673642276660,10.02355,1423.8,1423.5,0.108]
[1673642276872,17.1131,1423.8,1423.5,0.108]
[1673642277259,18.3001,1423.8,1423.5,0.108]
[1673642277483,25.32365,1423.8,1423.5,0.108]
[1673642277709,0.23,1423.7,1423.5,0.108]
[1673642277895,9.93994827,1423.7,1423.5,0.108]
[1673642278111,3.0,1423.6,1423.5,0.108]
[1673642278713,10.02444,1423.6,1423.5,0.108]
[1673642278920,10.09044,1423.6,1423.5,0.108]
[1673642279131,17.11488,1423.6,1423.5,0.108]
[1673642279365,28.95737812,1423.6,1423.5,0.108]
[1673642279599,32.56371084,1423.6,1423.5,0.108]
[1673642279810,32.56371084,1423.6,1423.0,0.09148195]
[1673642280068,1.187,1423.4,1423.0,21.11045833]
[1673642280182,1.187,1423.4,1423.0,23.64543317]
[1673642280394,8.21244,1423.4,1423.0,23.64543317]
[1673642280630,3.0,1423.3,1423.0,2.56334317]
[1673642280865,3.0,1423.3,1423.0,0.02836833]
[1673642280866,8.16674808,1423.3,1423.0,0.02836833]
[1673642281073,22.33112,1423.3,1423.0,0.02836833]
[1673642281652,8.27904,1423.3,1423.0,0.02836833]
[1673642281883,17.656812,1423.3,1423.0,0.02836833]
[1673642282095,3.0,1423.2,1423.0,0.02836833]
[1673642282321,10.02644,1423.2,1423.0,0.02836833]
[1673642282534,3.066,1423.2,1423.0,0.02836833]
[1673642282755,3.0,1423.2,1423.0,0.02836833]
[1673642282988,2.88,1423.2,1423.0,0.02836833]
[1673642283228,2.88,1423.2,1423.0,15.49787252]
[1673642283418,1.187,1423.4,1423.0,22.58838614]
[1673642283419,0.066,1423.4,1423.0,22.58838614]
[1673642283575,1.187,1423.5,1423.0,22.58838614]
[1673642283789,0.23,1423.4,1423.0,22.58838614]
[1673642284431,11.21211,1423.5,1423.0,15.56098614]
[1673642284651,18.30339,1423.5,1423.1,1.55609861]
[1673642285001,25.32867,1423.5,1423.1,1.55609861]
[1673642285733,17.11639,1423.5,1423.1,1.55609861]
[1673642286472,0.066,1423.5,1423.2,4.78233272]
[1673642286649,0.066,1423.6,1423.4,7.02543]
[1673642286855,7.08969,1423.8,1423.4,14.11397362]
[1673642287070,21.13705,1423.8,1423.4,0.06311362]
[1673642287271,21.13705,1423.8,1423.3,7.56701689]
[1673642287515,21.13705,1423.8,1423.3,11.17334961]
[1673642287732,21.13705,1423.8,1423.4,0.75670169]
[1673642287925,7.08968,1423.8,1423.4,0.75670169]
[1673642288133,0.066,1423.8,1423.4,23.01999169]
[1673642288467,23.881,1423.9,1423.5,16.35128917]
[1673642288675,15.8575,1423.9,1423.5,23.43933279]
[1673642289075,36.9267,1423.9,1423.5,2.36511279]
[1673642289262,14.11208,1423.9,1423.4,12.63842803]
[1673642289714,14.11208,1423.9,1423.4,15.13842803]
[1673642290302,7.08896,1423.9,1423.4,29.18913803]
[1673642290556,3.0,1423.8,1423.5,2.9189138]
[1673642290798,3.0,1423.8,1423.5,5.4189138]
[1673642290930,3.0,1423.8,1423.5,19.53188742]
[1673642291141,3.0,1423.8,1423.6,1.95318874]
[1673642291388,0.066,1423.9,1423.6,1.95318874]
[1673642291580,7.08864,1424.0,1423.6,8.97747874]
[1673642291806,7.08864,1424.0,1423.6,9.04059236]
[1673642291984,7.08864,1424.0,1423.6,2.01630236]
[1673642292349,23.488882,1424.0,1423.6,1.95318874]
[1673642292533,23.488882,1424.0,1423.5,4.16902742]
[1673642292737,23.488882,1424.0,1423.5,4.1059138]
[1673642293776,24.675882,1424.0,1423.5,2.9189138]
[1673642294236,24.675882,1424.0,1423.5,9.9438138]
[1673642294629,0.066,1424.0,1423.5,27.66312014]
[1673642294798,13.4877789,1424.1,1423.6,4.79333272]
[1673642294799,0.066,1424.1,1423.6,4.79333272]
[1673642295122,17.5919789,1424.2,1423.8,1.177]
[1673642295123,15.4213,1424.2,1423.8,1.177]
[1673642295327,7.08753,1424.2,1423.8,17.80885627]
[1673642295631,7.08753,1424.2,1423.8,24.89541989]
[1673642295632,0.066,1424.2,1423.8,24.89541989]
[1673642295830,21.89434,1424.3,1423.8,24.89541989]
[1673642296231,3.0,1424.2,1423.8,24.89541989]
[1673642298919,0.066,1424.3,1423.8,28.50175261]
[1673642299106,3.0,1424.3,1423.9,2.85017526]
[1673642299268,24.06408,1424.3,1423.9,2.85017526]
[1673642299656,25.1797589,1424.3,1423.8,1.24011362]
[1673642299830,15.22714,1424.1,1423.7,0.06311362]
[1673642300007,7.02296,1423.9,1423.5,25.35759742]
[1673642300214,14.11192,1423.9,1423.5,22.43857362]
[1673642300424,21.13488,1423.9,1423.5,15.41401362]
[1673642300889,0.066,1423.9,1423.6,3.60633272]
[1673642301109,3.0,1424.0,1423.8,14.0469]
[1673642301315,3.0,1424.0,1423.8,14.11001362]
[1673642301638,15.6258,1424.1,1423.8,21.13346362]
[1673642301937,15.6258,1424.1,1423.8,14.11001362]
[1673642302376,0.066,1424.1,1423.8,21.13346362]
[1673642302545,30.436,1424.2,1423.9,9.13627636]
[1673642302766,0.066,1424.2,1423.9,23.24530998]
[1673642302974,13.85457017,1424.3,1423.9,10.77438998]
[1673642303186,19.2987889,1424.3,1423.9,10.77438998]
[1673642303429,5.69247017,1424.3,1423.9,10.77438998]
[1673642303744,4.1156789,1424.3,1424.0,1.077439]
[1673642303901,4.0496789,1424.3,1424.0,1.077439]
[1673642304114,4.0496789,1424.3,1424.0,8.099819]
[1673642304320,4.0496789,1424.3,1424.0,15.18540262]
[1673642304532,4.0496789,1424.3,1424.0,22.20787262]
[1673642304894,17.40619127,1424.4,1424.0,22.20787262]
[1673642304895,16.8790789,1424.4,1424.2,21.06444]
[1673642305135,16.8790789,1424.4,1424.2,21.12755362]
[1673642305136,0.066,1424.4,1424.2,21.12755362]
[1673642305316,33.06247017,1424.5,1424.2,21.12755362]
[1673642305639,1.0496789,1424.4,1424.2,7.08459362]
[1673642305791,2.62647017,1424.5,1424.2,1.33296921]
[1673642305995,2.62647017,1424.5,1424.2,1.26985559]
[1673642306208,2.62647017,1424.5,1424.3,0.12698556]
[1673642306443,2.62647017,1424.5,1424.4,7.02049]
[1673642306734,1.0496789,1424.5,1424.4,8.52160362]
[1673642306946,1.25675057,1424.6,1424.4,8.52160362]
[1673642307234,1.25675057,1424.6,1424.4,10.79060154]
[1673642307403,1.25675057,1424.6,1424.4,3.77011154]
[1673642307596,1.25675057,1424.6,1424.5,3.60633272]
[1673642307897,1.25675057,1424.6,1424.5,17.64633272]
[1673642307898,0.20707167,1424.6,1424.5,17.64633272]
[1673642308074,0.20707167,1424.6,1424.5,21.26888277]
[1673642308793,0.20707167,1424.6,1424.5,0.06311362]
[1673642308794,1.64207167,1424.6,1424.5,0.06311362]
[1673642308987,1.64207167,1424.6,1424.3,0.06311362]
[1673642309199,0.20707167,1424.6,1424.4,17.64697272]
[1673642309419,0.20707167,1424.6,1424.4,14.10405362]
[1673642309420,2.70707167,1424.6,1424.4,14.10405362]
[1673642309800,4.33038607,1424.5,1424.4,0.06311362]
[1673642309963,21.60038607,1424.5,1424.0,7.99561362]
[1673642310131,3.0,1424.4,1424.0,7.99561362]
[1673642310493,10.0206,1424.4,1424.0,7.99561362]
[1673642310645,10.0866,1424.4,1424.0,7.99561362]
[1673642311029,19.99007773,1424.4,1424.0,7.99561362]
[1673642311177,22.61475663,1424.4,1424.0,7.99561362]
[1673642311644,21.56507773,1424.4,1424.0,7.99561362]
[1673642311853,22.61475663,1424.4,1424.0,7.99561362]
[1673642312606,22.61475663,1424.4,1424.0,0.06311362]
[1673642312607,1.575,1424.3,1424.0,0.06311362]
[1673642312808,1.565,1424.1,1423.9,0.06311362]
[1673642312965,1.565,1424.1,1423.8,0.06311362]
[1673642312966,7.02247,1424.0,1423.8,0.06311362]
[1673642313184,7.08847,1424.0,1423.7,0.06311362]
[1673642313505,17.50994079,1424.0,1423.6,8.25421362]
[1673642313726,17.50994079,1424.0,1423.6,0.06311362]
[1673642313944,10.48747079,1424.0,1423.5,7.02487]
[1673642314260,10.48747079,1424.0,1423.6,0.702487]
[1673642314524,0.066,1424.0,1423.6,0.702487]
[1673642314841,3.0,1424.0,1423.6,7.726867]
[1673642314961,3.066,1424.1,1423.8,14.0467]
[1673642315189,3.066,1424.2,1423.8,17.71614634]
[1673642315442,3.0,1424.2,1423.9,1.77161463]
[1673642315613,3.0,1424.2,1423.9,15.81709463]
[1673642315955,3.0,1424.2,1423.9,8.85728825]
[1673642316275,23.7379,1424.3,1423.9,26.50954097]
[1673642316438,23.7379,1424.3,1424.0,0.88572882]
[1673642316790,0.066,1424.3,1424.1,7.02197]
[1673642317004,3.0,1424.4,1424.1,7.02197]
[1673642317005,3.0,1424.4,1424.1,7.08508362]
[1673642317215,3.0,1424.3,1424.1,7.08508362]
[1673642317378,33.0606789,1424.5,1424.1,1.56239186]
[1673642317379,3.066,1424.4,1424.1,1.56239186]
[1673642317613,3.0,1424.4,1424.1,1.49927824]
[1673642318007,10.02052,1424.4,1424.0,7.97081244]
[1673642318213,10.08652,1424.4,1424.0,7.97081244]
[1673642319178,3.066,1424.4,1424.0,14.99328244]
[1673642319373,3.0,1424.4,1424.0,14.99328244]
[1673642320424,3.0,1424.4,1424.0,0.06311362]
[1673642320748,12.6451689,1424.4,1423.9,0.06311362]
[1673642320966,12.7111689,1424.4,1423.9,24.67489272]
[1673642321206,12.7111689,1424.4,1423.9,24.73800634]
[1673642322004,22.56449192,1424.4,1423.9,27.91413797]
[1673642322471,29.58498192,1424.4,1423.9,7.08575362]
[1673642323361,29.58498192,1424.4,1423.9,0.06311362]
[1673642323362,14.04316,1424.2,1423.9,0.06311362]
[1673642323570,21.13074,1424.2,1423.8,0.06311362]
[1673642323894,23.43299267,1424.2,1423.7,30.50436362]
[1673642324154,0.066,1424.2,1423.8,3.60633272]
[1673642324463,4.1156789,1424.4,1423.9,21.06858]
[1673642324683,4.0496789,1424.4,1423.9,24.73802634]
[1673642325463,11.0701689,1424.4,1423.9,21.13169362]
[1673642325781,11.0701689,1424.4,1423.9,0.06311362]
[1673642325782,7.02158,1424.2,1423.9,0.06311362]
[1673642326014,7.08758,1424.2,1423.8,14.10936362]
[1673642326311,0.066,1424.2,1423.8,24.73914634]
[1673642326541,0.066,1424.3,1423.9,3.60633272]
[1673642326730,4.1156789,1424.4,1424.0,28.08948]
[1673642327068,21.06299,1424.3,1424.0,0.06311362]
[1673642327298,21.12899,1424.3,1423.8,19.46450637]
[1673642327521,15.1576689,1424.3,1423.9,14.04555]
[1673642327828,15.1576689,1424.3,1423.9,7.08585362]
[1673642328001,15.1576689,1424.3,1423.9,9.13158025]
[1673642328002,22.1786689,1424.3,1423.9,9.13158025]
[1673642328197,2.6096789,1424.2,1423.9,0.06075669]
[1673642328543,21.06654,1424.1,1423.7,23.47815669]
[1673642328784,21.06654,1424.1,1423.8,3.60633272]
[1673642328785,0.066,1424.1,1423.8,3.60633272]
[1673642329004,12.87685853,1424.3,1423.9,14.04592]
[1673642329005,3.0,1424.2,1423.9,14.04592]
[1673642329328,3.0,1424.2,1423.9,14.10667669]
[1673642329901,3.0,1424.2,1423.9,10.68993941]
[1673642330163,3.0,1424.2,1423.9,13.16355135]
[1673642330333,25.1141789,1424.2,1423.9,6.14070135]
[1673642330525,17.10896,1424.2,1423.9,3.66708941]
[1673642330735,17.10896,1424.2,1423.9,3.60633272]
[1673642330943,17.10896,1424.2,1423.8,7.08409669]
[1673642331193,17.10896,1424.2,1423.8,10.69042941]
[1673642331417,17.10896,1424.2,1423.8,15.34099038]
[1673642331742,0.066,1424.2,1423.9,3.60633272]
[1673642331945,9.2636789,1424.3,1424.0,21.06741]
[1673642332258,0.066,1424.3,1424.2,21.06444]
[1673642332573,1.1156789,1424.4,1424.2,7.08223669]
[1673642332884,2.69247017,1424.5,1424.2,7.08223669]
[1673642333098,2.62647017,1424.5,1424.3,0.70822367]
[1673642333317,1.0496789,1424.5,1424.3,0.70822367]
[1673642333482,1.32275057,1424.6,1424.3,14.74973367]
[1673642333683,2.83354184,1424.6,1424.4,1.47497337]
[1673642334391,1.25675057,1424.6,1424.5,7.02]
[1673642334524,1.25675057,1424.6,1424.5,1.49875669]
[1673642334726,0.20707167,1424.6,1424.5,12.06433272]
[1673642334937,0.20707167,1424.6,1424.5,12.12508941]
[1673642335178,0.20707167,1424.6,1424.5,1.49875669]
[1673642335429,0.20707167,1424.6,1424.5,0.85189367]
[1673642335584,0.20707167,1424.6,1424.3,0.76898036]
[1673642335585,1.25675057,1424.6,1424.3,0.76898036]
[1673642335793,0.20707167,1424.6,1424.3,4.31455639]
[1673642336031,0.20707167,1424.6,1424.3,11.33541639]
[1673642336193,1.25675057,1424.6,1424.3,0.76898036]
[1673642336413,1.25675057,1424.6,1424.3,0.70822367]
[1673642336646,11.27626057,1424.6,1424.2,0.06075669]
[1673642336833,11.27626057,1424.6,1424.1,0.06075669]
[1673642336834,4.20147017,1424.5,1424.1,0.06075669]
[1673642337083,4.20147017,1424.5,1424.0,8.50645669]
[1673642337084,19.66755017,1424.4,1424.0,8.50645669]
[1673642337303,16.48103203,1424.4,1424.0,0.06075669]
[1673642337457,16.48103203,1424.4,1423.9,15.22585669]
[1673642337458,15.77246802,1424.4,1423.9,15.22585669]
[1673642337662,15.77246802,1424.4,1423.9,17.09233884]
[1673642337936,15.77246802,1424.4,1423.9,15.22585669]
[1673642338148,8.0708889,1424.3,1423.9,15.22585669]
[1673642338316,8.1368889,1424.3,1423.9,15.22585669]
[1673642338528,8.1368889,1424.3,1423.9,0.06075669]
[1673642338767,8.1368889,1424.3,1423.8,8.28565669]
[1673642338989,10.21246674,1424.3,1423.8,11.89198941]
[1673642339297,0.066,1424.3,1423.9,5.34837402]
[1673642339544,5.69247017,1424.4,1423.9,0.06075669]
[1673642339736,1.0496789,1424.3,1423.9,2.96904245]
[1673642340029,8.27722602,1424.4,1423.9,2.96904245]
[1673642340186,5.69247017,1424.4,1424.0,3.60633272]
[1673642340397,5.69247017,1424.4,1424.0,10.62871272]
[1673642340621,1.0496789,1424.3,1424.0,3.66708941]
[1673642340863,5.69247017,1424.4,1424.0,10.62866272]
[1673642341027,1.0496789,1424.3,1424.0,20.742695]
[1673642341238,4.1156789,1424.4,1424.0,20.742695]
[1673642341618,2.62647017,1424.4,1424.0,20.742695]
[1673642341916,2.62847017,1424.4,1424.0,20.740695]
[1673642342167,2.62847017,1424.4,1424.0,20.742695]
[1673642342168,1.0496789,1424.3,1424.0,20.742695]
[1673642342298,1.0496789,1424.3,1424.0,0.06075669]
[1673642342299,8.0707689,1424.3,1424.0,0.06075669]
[1673642342501,2.69247017,1424.3,1423.9,7.02291]
[1673642342729,2.69247017,1424.3,1423.9,10.68999941]
[1673642342730,2.62647017,1424.3,1423.9,10.68999941]
[1673642342934,2.62647017,1424.3,1423.9,17.71295941]
[1673642343149,2.62647017,1424.3,1423.9,21.27037073]
[1673642343379,2.62647017,1424.3,1423.9,14.24741073]
[1673642343812,1.0496789,1424.2,1423.9,7.08366669]
[1673642344351,8.0711589,1424.2,1423.9,0.06075669]
[1673642344499,8.1371589,1424.2,1423.8,8.28565669]
[1673642344711,10.27093275,1424.2,1423.8,11.89198941]
[1673642345123,10.27093275,1424.2,1423.8,3.66708941]
[1673642345124,11.84772402,1424.2,1423.8,3.66708941]
[1673642345333,11.84772402,1424.2,1423.8,3.60633272]
[1673642345849,1.0496789,1424.1,1423.7,16.81709716]
[1673642346016,8.0718089,1424.1,1423.7,17.80998941]
[1673642346258,8.1378089,1424.1,1423.7,20.42342988]
[1673642346407,8.1378089,1424.1,1423.7,17.80998941]
[1673642346605,8.1378089,1424.1,1423.7,23.80700843]
[1673642346874,1.1156789,1424.1,1423.7,37.85484843]
[1673642347023,1.1156789,1424.2,1423.8,3.60633272]
[1673642347230,4.0496789,1424.2,1423.9,14.04582]
[1673642347484,4.0496789,1424.2,1423.9,14.10657669]
[1673642347650,4.0496789,1424.2,1423.9,0.06075669]
[1673642347859,5.62647017,1424.2,1423.8,14.32804864]
[1673642348071,4.1156789,1424.2,1423.8,21.35149864]
[1673642348400,5.62647017,1424.2,1423.9,1.43280486]
[1673642348613,1.0496789,1424.1,1423.8,0.0701111]
[1673642348816,8.0718889,1424.1,1423.8,0.00935441]
[1673642349158,1.0496789,1423.9,1423.7,0.06075669]
[1673642349369,8.0729489,1423.9,1423.4,29.15924696]
[1673642349542,9.19623472,1423.9,1423.5,1.74259265]
[1673642349750,3.0,1423.8,1423.5,1.74259265]
[1673642350070,3.0,1423.8,1423.5,12.37371537]
[1673642350280,0.066,1423.9,1423.8,8.88205909]
[1673642350532,3.0,1424.0,1423.8,8.94281578]
[1673642350758,3.0,1424.0,1423.8,1.91936578]
[1673642350910,3.0,1424.0,1423.8,1.85860909]
[1673642351110,0.002,1424.0,1423.8,15.90545909]
[1673642351338,30.436,1424.1,1423.8,18.26499436]
[1673642351587,0.066,1424.1,1423.8,11.24154436]
[1673642351782,3.0,1424.1,1423.8,11.24154436]
[1673642352393,3.0,1424.1,1423.8,4.21814436]
[1673642352725,3.0,1424.1,1423.8,4.15738767]
[1673642352899,3.0,1424.1,1423.8,11.18083767]
[1673642353251,3.0,1424.1,1423.8,1.91936578]
[1673642353424,3.0,1424.1,1423.8,1.85860909]
[1673642353425,17.04456,1424.1,1423.8,1.85860909]
[1673642353633,17.11056,1424.1,1423.8,1.85860909]
[1673642354287,10.08828,1424.1,1423.8,1.85860909]
[1673642354497,3.066,1424.1,1423.8,1.85860909]
[1673642354810,11.59878127,1424.1,1423.8,1.85860909]
[1673642355020,28.64710123,1424.1,1423.8,1.85860909]
[1673642355240,27.07030996,1424.1,1423.8,1.85860909]
[1673642356908,28.64710123,1424.1,1423.8,1.85860909]
[1673642357115,7.02296,1423.9,1423.8,1.85860909]
[1673642357330,1.501,1423.9,1423.8,1.85860909]
[1673642357566,1.435,1423.9,1423.8,1.85860909]
[1673642357992,3.63172573,1423.9,1423.8,1.85860909]
[1673642358204,10.65468573,1423.9,1423.8,1.85860909]
[1673642358392,2.26272573,1423.9,1423.8,1.85860909]
[1673642358601,22.71116127,1424.0,1423.8,1.85860909]
[1673642358813,21.13437,1424.0,1423.8,1.85860909]
[1673642359048,0.066,1424.0,1423.8,8.88165909]
[1673642359206,11.59877127,1424.1,1423.8,8.94241578]
[1673642359412,7.02259,1424.0,1423.8,1.91936578]
[1673642359667,7.02259,1424.0,1423.8,1.85860909]
[1673642359668,0.066,1424.0,1423.8,1.85860909]
[1673642359890,15.49574604,1424.1,1423.8,1.85860909]
[1673642360109,8.47376604,1424.1,1423.8,15.90537909]
[1673642360309,8.47376604,1424.1,1423.8,15.96613578]
[1673642360892,15.49578604,1424.1,1423.8,8.94268578]
[1673642361160,13.91899477,1424.1,1423.8,8.94268578]
[1673642361324,4.11590381,1424.1,1423.8,15.96613578]
[1673642361537,4.05190381,1424.1,1423.8,15.96413578]
[1673642361747,4.04990381,1424.1,1423.8,15.96613578]
[1673642362155,3.0,1424.1,1423.8,22.98958578]
[1673642362378,3.0,1424.1,1423.8,15.96613578]
[1673642362593,4.11590381,1424.2,1423.8,25.28854836]
[1673642362786,5.62669508,1424.2,1423.8,18.26509836]
[1673642363011,4.11590381,1424.2,1423.8,28.89488108]
[1673642363218,4.04990381,1424.2,1423.8,7.82466108]
[1673642363601,4.04990381,1424.2,1423.9,0.78246611]
[1673642363757,4.04990381,1424.2,1423.9,7.80540611]
[1673642364098,11.07144381,1424.2,1423.9,0.8432228]
[1673642364252,18.15930381,1424.2,1423.8,8.94255578]
[1673642365530,4.11590381,1424.2,1423.8,22.98945578]
[1673642365745,4.04990381,1424.2,1423.8,22.98945578]
[1673642366589,4.04990381,1424.2,1423.8,15.96600578]
[1673642366989,11.07152381,1424.2,1423.8,15.96600578]
[1673642367207,26.75755508,1424.2,1423.8,6.78346236]
[1673642367459,1.04990381,1424.1,1423.8,1.91936578]
[1673642367668,1.04990381,1424.1,1423.8,1.85860909]
[1673642367885,7.02247,1424.0,1423.8,1.85860909]
[1673642368045,7.08847,1424.0,1423.8,1.85860909]
[1673642369033,0.066,1424.0,1423.8,1.85860909]
[1673642369250,8.13807381,1424.1,1423.8,1.85860909]
[1673642369411,0.066,1424.1,1423.8,8.88186909]
[1673642369775,7.02201,1424.1,1423.8,8.94262578]
[1673642369990,7.08801,1424.1,1423.8,8.94262578]
[1673642370687,8.13791381,1424.1,1423.8,8.95198019]